fUST/lending_fUST_20240326
["ID","MTS","AMOUNT","RATE_DAILY","PERIOD"]
[320538468,1711427526749,-150.5,0.00024303,35]
[320538469,1711427526771,-150.5,0.00024313,35]
[320538470,1711427526794,-150.5,0.00024313,35]
[320538471,1711427526816,-150.5,0.00024323,35]
[320538472,1711427526837,-150.5,0.00024323,35]
[320538473,1711427526859,-150.5,0.00024333,35]
[320538474,1711427526881,-150.5,0.00024333,35]
[320538475,1711427526903,-150.5,0.00024333,35]
[320538484,1711428306770,1000.0,0.00022,30]
[320538542,1711428631838,-165.41366455,0.00019894,2]
[320538544,1711428631847,-1539.79390352,0.00019899,2]
[320538546,1711428631857,-260.3488139,0.000199,2]
[320538548,1711428631867,-236.85437915,0.000199,2]
[320538550,1711428631876,-260.3488139,0.00019924,2]
[320538552,1711428631885,-260.3488139,0.00019947,2]
[320538553,1711428631894,-260.3488139,0.00019971,2]
[320538554,1711428631903,-14940.47482986,0.00019973,2]
[320538555,1711428631912,-155.61599326,0.00019976,2]
[320538556,1711428631921,-1166.39891937,0.0001998,2]
[320538557,1711428631930,-60345.09202161,0.0001998,2]
[320538859,1711428643163,-33292.40338275,0.0001998,2]
[320538969,1711428666953,2625.0,0.00026,120]
[320538980,1711428994249,1750.80012623,0.000177,2]
[320538981,1711428994273,2133.24913371,0.000177,2]
[320538982,1711428994296,2133.24913371,0.000177,2]
[320538983,1711428994336,3982.70160635,0.000177,2]
[320538984,1711429007786,5817.29839365,0.000177,2]
[320538985,1711429007810,4182.70160635,0.000177,2]
[320538986,1711429014443,1088.99279365,0.000177,2]
[320538987,1711429014465,5271.6944,0.000177,2]
[320538988,1711429014488,3639.31280635,0.000177,2]
[320538989,1711429020301,1632.38159365,0.00017699,2]
[320538990,1711429020327,324.85999195,0.00017699,2]
[320538991,1711429022091,165.14000805,0.000177,2]
[320538992,1711429022118,490.0,0.000177,2]
[320538993,1711429022143,490.0,0.000177,2]
[320538994,1711429022167,3903.04757422,0.000177,2]
[320538995,1711429022190,4951.81241773,0.000177,2]
[320538996,1711429061199,3780.97464449,0.000177,2]
[320538997,1711429061224,8732.78706222,0.000177,2]
[320538998,1711429062023,-6424.54071004,0.000177,2]
[320538999,1711429062180,-131.11307572,0.000177,2]
[320539000,1711429077346,6293.42763432,0.000177,2]
[320539001,1711429077371,6424.54071004,0.000177,2]
[320539002,1711429077395,6412.44605827,0.000177,2]
[320539389,1711429843099,-686.05454832,0.00018888,2]
[320539391,1711429843111,-155.11633725,0.00018888,2]
[320539394,1711429843120,-1610.84561279,0.00018889,2]
[320539397,1711429843129,-204.86050653,0.0001889,2]
[320539400,1711429843139,-1889.35512473,0.0001889,2]
[320539403,1711429843148,-173.74775997,0.000189,2]
[320539405,1711429843158,-300.0,0.00018998,2]
[320539407,1711429843167,-2030.02011041,0.00018999,2]
[320539413,1711429843212,-388.61999992,0.00018999,2]
[320539565,1711431032226,-180.26624286,0.0001888,2]
[320539566,1711431032235,-1610.84561279,0.00018881,2]
[320539567,1711431032244,-2605.93322734,0.00018882,2]
[320539568,1711431032253,-1000.96003178,0.00018998,2]
[320539569,1711431032262,-44970.63632028,0.00018999,2]
[320539570,1711431032271,-160.0,0.00018999,2]
[320539571,1711431032280,-160.0,0.00018999,2]
[320539572,1711431032290,-34441.37510199,0.00019,2]
[320539573,1711431032299,-201.92522206,0.00019,2]
[320539574,1711431032308,-163.83692533,0.00019077,2]
[320539575,1711431032317,-162.79215424,0.00019177,2]
[320539576,1711431032327,-500.0,0.00019178,2]
[320539577,1711431032336,-500.0,0.00019178,2]
[320539578,1711431032347,-500.0,0.00019178,2]
[320539579,1711431032356,-289.81379151,0.00019178,2]
[320539732,1711432232465,-204.86050653,0.00018985,2]
[320539735,1711432232475,-3444.95020738,0.00018986,2]
[320539738,1711432232486,-326.12123614,0.00018987,2]
[320539741,1711432232495,-1574.04740099,0.00018987,2]
[320539744,1711432232505,-214.77448763,0.00018988,2]
[320539747,1711432232514,-291.43545866,0.00018989,2]
[320539749,1711432232524,-2000.0,0.00019692,2]
[320539758,1711432232645,-151.0,0.000198,2]
[320539759,1711432232655,-163.8369253,0.00019892,2]
[320539760,1711432232665,-163.8369253,0.00019895,2]
[320539761,1711432232676,-163.8369253,0.00019897,2]
[320539762,1711432232685,-500.0,0.00019899,2]
[320539763,1711432232695,-500.0,0.00019899,2]
[320539764,1711432232705,-400.26021765,0.00019899,2]
[320539765,1711432232715,-500.0,0.00019899,2]
[320539766,1711432232724,-500.0,0.00019899,2]
[320539767,1711432232735,-500.0,0.00019899,2]
[320539768,1711432232748,-500.0,0.00019899,2]
[320539769,1711432232757,-500.0,0.00019899,2]
[320539770,1711432232767,-500.0,0.00019899,2]
[320539771,1711432232777,-500.0,0.00019899,2]
[320539772,1711432232787,-649.15212018,0.00019899,2]
[320539773,1711432232797,-153.0,0.000199,2]
[320539775,1711432232806,-153.0,0.000199,2]
[320539777,1711432232816,-218.96,0.000199,12]
[320539779,1711432232826,-55530.9786417,0.000199,2]
[320539997,1711432769662,151.14358641,0.00021947,120]
[320540041,1711433432520,-16967.23856531,0.00018,2]
[320540140,1711433438587,-3110.60271145,0.00018,2]
[320540146,1711433440709,-2303.02942273,0.00018,2]
[320540230,1711433443810,-6981.06727502,0.00018,2]
[320540231,1711433443822,-210.40624973,0.00018926,2]
[320540232,1711433443831,-155.14739002,0.00018927,2]
[320540233,1711433443840,-2605.93322734,0.00018927,2]
[320540234,1711433443849,-1574.04740099,0.00018928,2]
[320540235,1711433443858,-214.77448763,0.00018984,2]
[320540236,1711433443867,-801.77819783,0.00019,2]
[320540237,1711433443876,-165.40406428,0.000197,2]
[320540238,1711433443885,-155.14739002,0.00019898,2]
[320540239,1711433443894,-163.8369253,0.00019899,2]
[320540240,1711433443903,-183.23912447,0.00019899,2]
[320540241,1711433443912,-433.36224641,0.00019899,2]
[320540242,1711433443921,-29424.80137714,0.000199,2]
[320540243,1711433443930,-5258.14767008,0.0001998,2]
[320540310,1711434571785,-225.0111954,0.00018899,2]
[320540311,1711434571811,-155.14894299,0.00018899,2]
[320540312,1711434571840,-300.0,0.00018899,2]
[320540313,1711434571860,-225.0111954,0.000189,2]
[320540314,1711434571879,-155.14894299,0.000189,2]
[320540315,1711434571894,-300.0,0.000189,2]
[320540316,1711434571906,-3475.67972322,0.000189,2]
[320540341,1711434631696,-13169.16013839,0.000189,2]
[320540343,1711434631706,-355.23986161,0.00019,2]
[320540348,1711434631752,-759.42781077,0.00019,2]
[320540350,1711434631762,-165.40406428,0.0001978,2]
[320540352,1711434631771,-67301.0,0.000198,2]
[320540353,1711434631780,-500.0,0.00019899,2]
[320540355,1711434631789,-265.05564025,0.00019899,2]
[320540357,1711434631799,-493.81487992,0.00019899,2]
[320540358,1711434631808,-500.0,0.00019899,2]
[320540360,1711434631818,-435.67929192,0.00019899,2]
[320540362,1711434631827,-500.0,0.00019899,2]
[320540364,1711434631837,-500.0,0.00019899,2]
[320540365,1711434631846,-500.0,0.00019899,2]
[320540366,1711434631855,-500.0,0.00019899,2]
[320540368,1711434631864,-562.29702023,0.00019899,2]
[320540370,1711434631874,-500.0,0.00019899,2]
[320540372,1711434631883,-500.0,0.00019899,2]
[320540374,1711434631898,-500.0,0.00019899,2]
[320540375,1711434631909,-500.0,0.00019899,2]
[320540376,1711434631919,-500.0,0.00019899,2]
[320540377,1711434631931,-366.34385927,0.00019899,2]
[320540378,1711434631941,-36173.00115111,0.000199,2]
[320540422,1711434637809,-500.0,0.000189,2]
[320540423,1711434637821,-543.83342223,0.000189,2]
[320540424,1711434637830,-4412.23912048,0.000199,2]
[320540425,1711434637864,-432.25340078,0.000199,2]
[320540483,1711434646040,-22375.42438567,0.000199,2]
[320540484,1711434646050,-166.62841705,0.00019941,2]
[320540485,1711434646060,-166.62841705,0.00019943,2]
[320540486,1711434646070,-166.62841705,0.00019954,2]
[320540487,1711434646081,-2701.99884847,0.00019958,2]
[320540488,1711434646091,-2701.99884847,0.00019959,2]
[320540490,1711434646101,-2701.99884847,0.00019962,2]
[320540492,1711434646110,-166.62841705,0.00019963,2]
[320540494,1711434646120,-166.62841705,0.00019965,2]
[320540496,1711434646130,-2701.99884847,0.00019968,2]
[320540497,1711434646139,-2701.99884847,0.00019973,2]
[320540498,1711434646150,-166.62841705,0.00019974,2]
[320540499,1711434646162,-166.62841705,0.00019975,2]
[320540500,1711434646171,-2701.99884847,0.00019975,2]
[320540501,1711434646181,-2701.99884847,0.00019979,2]
[320540502,1711434646190,-1002.13862945,0.0001998,2]
[320540503,1711434646199,-155.61599326,0.0001998,2]
[320540504,1711434646209,-180.20839376,0.00019992,2]
[320540505,1711434646218,-928.74988494,0.00019994,2]
[320540506,1711434646228,-182.209396,0.00019998,2]
[320540507,1711434646238,-536.77873632,0.00019998,2]
[320540508,1711434646249,-3459.84464943,0.00019998,2]
[320540509,1711434646259,-205.71878105,0.00019998,2]
[320540510,1711434646269,-305.34145418,0.00019998,2]
[320540511,1711434646279,-292.76865979,0.00019998,2]
[320540512,1711434646288,-178.85302893,0.00019998,2]
[320540513,1711434646298,-206.28866117,0.00019998,2]
[320540514,1711434646308,-926.05799669,0.00019998,2]
[320540515,1711434646317,-213.95040847,0.00019998,2]
[320540516,1711434646327,-1587.08479109,0.00019998,2]
[320540517,1711434646336,-362.09279444,0.00019998,2]
[320540518,1711434646346,-226.01970065,0.00019998,2]
[320540519,1711434646356,-156.77619235,0.00019998,2]
[320540520,1711434646365,-352.53220029,0.00019998,2]
[320540521,1711434646375,-29125.08193385,0.00019999,2]
[320540522,1711434646385,-307.64171913,0.00019999,2]
[320540523,1711434646394,-171.3933909,0.00019999,2]
[320540524,1711434646404,-67312.0,0.0002,2]
[320540525,1711434646416,-239.56257658,0.0002,2]
[320540526,1711434646426,-684.16921587,0.0002,2]
[320540527,1711434646435,-275.8084111,0.0002,2]
[320540528,1711434646444,-155.12565178,0.0002,2]
[320540529,1711434646454,-155.12565178,0.0002,2]
[320540530,1711434646463,-3148.03990466,0.0002,2]
[320540596,1711435831948,-22076.9283894,0.00019,2]
[320540598,1711435831959,-165.40406428,0.00019799,2]
[320540600,1711435831969,-27357.18561482,0.00019899,2]
[320540602,1711435831979,-173.56587594,0.00019899,2]
[320540604,1711435831988,-173.56587593,0.000199,2]
[320540606,1711435831998,-173.56587593,0.000199,2]
[320540609,1711435832008,-835.8748965,0.000199,2]
[320540612,1711435832018,-1754.18638407,0.0001994,2]
[320540614,1711435832028,-21399.87458172,0.00019942,2]
[320540617,1711435832038,-1754.18638407,0.00019943,2]
[320540620,1711435832048,-7261.95016649,0.00019944,2]
[320540622,1711435832058,-7261.95016649,0.00019946,2]
[320540625,1711435832068,-2134.35354713,0.00019946,2]
[320540627,1711435832078,-21399.87458172,0.00019947,2]
[320540629,1711435832087,-7261.95016649,0.00019948,2]
[320540631,1711435832096,-1754.18638407,0.0001995,2]
[320540633,1711435832106,-21399.87458172,0.0001995,2]
[320540635,1711435832115,-3144.13001298,0.00019951,2]
[320540638,1711435832125,-7779.16670068,0.00019951,2]
[320540641,1711435832134,-2134.35354713,0.00019954,2]
[320540644,1711435832144,-21399.87458172,0.00019954,2]
[320540647,1711435832153,-2134.35354713,0.00019955,2]
[320540650,1711435832162,-21399.87458172,0.00019955,2]
[320540653,1711435832172,-1754.18638407,0.00019956,2]
[320540655,1711435832181,-835.87489643,0.00019956,2]
[320540656,1711435832191,-21399.87458172,0.00019956,2]
[320540657,1711435832200,-7779.16670068,0.00019956,2]
[320540658,1711435832210,-7779.16670068,0.00019956,2]
[320540659,1711435832220,-3144.13001298,0.00019957,2]
[320540660,1711435832229,-7779.16670068,0.00019958,2]
[320540661,1711435832239,-2134.35354713,0.00019958,2]
[320540663,1711435832252,-7261.95016649,0.0001996,2]
[320540664,1711435832262,-7261.95016649,0.00019961,2]
[320540666,1711435832271,-1754.18638407,0.00019962,2]
[320540667,1711435832281,-7779.16670068,0.00019963,2]
[320540668,1711435832291,-3144.13001298,0.00019964,2]
[320540670,1711435832300,-2134.35354713,0.00019967,2]
[320540671,1711435832310,-20020.57105847,0.00019967,2]
[320540992,1711435843085,-165.40406428,0.00019799,2]
[320540993,1711435843095,-1379.30352325,0.00019967,2]
[320540994,1711435843104,-2969.6358256,0.00019967,2]
[320541009,1711435846238,-174.49418738,0.00019967,2]
[320541010,1711435846253,-2134.35354713,0.00019969,2]
[320541011,1711435846264,-2134.35354713,0.00019969,2]
[320541012,1711435846274,-1754.18638407,0.0001997,2]
[320541013,1711435846285,-3144.13001298,0.00019971,2]
[320541014,1711435846295,-7261.95016649,0.00019973,2]
[320541015,1711435846305,-1754.18638407,0.00019973,2]
[320541016,1711435846317,-7779.16670068,0.00019974,2]
[320541017,1711435846328,-3144.13001298,0.00019974,2]
[320541018,1711435846338,-3144.13001298,0.00019975,2]
[320541019,1711435846348,-7261.95016649,0.00019977,2]
[320541020,1711435846358,-3521.73854294,0.00019978,2]
[320541033,1711436535405,159.56,0.00022222,30]
[320541260,1711437040153,-1301.78030648,0.00019686,2]
[320541261,1711437040163,-155.06512735,0.00019686,2]
[320541262,1711437040172,-155.07288426,0.00019687,2]
[320541263,1711437040182,-4101.76325622,0.00019687,2]
[320541264,1711437040191,-7890.87828017,0.000197,2]
[320541566,1711437046440,-2659.04835891,0.000197,2]
[320541568,1711437046450,-165.40406429,0.00019799,2]
[320541570,1711437046459,-272.7,0.000199,2]
[320541573,1711437046468,-520.6976278,0.000199,2]
[320541574,1711437046477,-160.50205833,0.000199,2]
[320541576,1711437046486,-236.85437915,0.000199,2]
[320541578,1711437046495,-4257.42815774,0.00019978,2]
[320541580,1711437046505,-1763.97336587,0.0001998,2]
[320543283,1711437324896,155.11,0.00022222,30]
[320543284,1711437349887,-500.0,0.00019899,2]
[320543285,1711437349909,-500.0,0.00019899,2]
[320543286,1711437349931,-37100.0,0.000199,2]
[320543287,1711437706823,-1652.01149147,0.0001772,2]
[320543288,1711437706891,-33.71452023,0.0001772,2]
[320543289,1711437713163,155.14894299,0.00017719,2]
[320543290,1711437809508,-155.15049598,0.00017829,2]
[320543291,1711437809532,-155.15049598,0.0001783,2]
[320543292,1711437809555,-214.77448763,0.0001783,2]
[320543293,1711437809579,-560.16902881,0.0001783,2]
[320543294,1711437809603,-471.19723766,0.00017831,2]
[320543295,1711437809626,-155.15049598,0.00017831,2]
[320543296,1711437809649,-2497.94786715,0.00017831,2]
[320543297,1711437809840,-252.75611309,0.00017831,2]
[320543298,1711437809866,-155.14894299,0.00017832,2]
[320543299,1711437809890,-1478.86606329,0.00017832,2]
[320543300,1711437809913,-1301.78030648,0.00017832,2]
[320543301,1711437809937,-155.14894299,0.00017833,2]
[320543302,1711437809960,-931.91632762,0.00017833,2]
[320543303,1711437809983,-437.35894058,0.00017833,2]
[320543304,1711437810006,-376.02875639,0.00017837,2]
[320543305,1711437810030,-155.14894299,0.00017837,2]
[320543306,1711437810064,205.33441189,0.00017829,2]
[320543307,1711437812194,322.92829142,0.00017829,2]
[320543308,1711437814285,-1027.48809118,0.00017841,2]
[320543309,1711437814420,-20.96914472,0.00017841,2]
[320543310,1711437821701,926.03121333,0.00017841,2]
[320543389,1711438232360,-250.0,0.00018372,2]
[320543390,1711438232370,-1048.4572359,0.00018455,2]
[320543391,1711438232379,-300.0,0.0001904,2]
[320543392,1711438232389,-5518.30416462,0.00019041,2]
[320543948,1711438238366,-1185.51018437,0.00019041,2]
[320543950,1711438238378,-4051.62221,0.00019041,2]
[320543953,1711438238390,-1002.2493003,0.00019041,2]
[320543958,1711438238431,-88.24571001,0.00019041,2]
[320543960,1711438238441,-177.4068221,0.00019178,2]
[320543962,1711438238450,-1145.51795882,0.00019699,2]
[320543964,1711438238460,-27034.33287034,0.000199,2]
[320543966,1711438238469,-186.9143283,0.000199,2]
[320543968,1711438238478,-153.0,0.000199,2]
[320543970,1711438238488,-153.0,0.000199,2]
[320543972,1711438238499,-153.0,0.000199,2]
[320543975,1711438238509,-153.0,0.000199,2]
[320543977,1711438238520,-153.0,0.000199,2]
[320543979,1711438238529,-153.0,0.000199,2]
[320543981,1711438238538,-153.0,0.000199,2]
[320543983,1711438238548,-153.0,0.00019961,2]
[320543985,1711438238559,-153.0,0.00019961,2]
[320543986,1711438238569,-63417.3838465,0.0001998,2]
[320543988,1711438238584,-4154.5234436,0.0001999,2]
[320543990,1711438238594,-500.0,0.00019997,2]
[320543992,1711438238603,-500.0,0.00019997,2]
[320543994,1711438238613,-500.0,0.00019997,2]
[320543996,1711438238621,-500.0,0.00019997,2]
[320543999,1711438238631,-500.0,0.00019997,2]
[320544001,1711438238640,-500.0,0.00019997,2]
[320544003,1711438238649,-241.47778987,0.00019997,2]
[320544005,1711438238662,-500.0,0.00019997,2]
[320544007,1711438238670,-500.0,0.00019997,2]
[320544009,1711438238680,-207.17397025,0.00019998,2]
[320544010,1711438238689,-186.4316965,0.00019998,2]
[320544013,1711438238699,-299.45648477,0.00019998,2]
[320544015,1711438238708,-1573.60018062,0.00019998,2]
[320544017,1711438238718,-291.35313108,0.00019998,2]
[320544019,1711438238727,-155.5518246,0.00019998,2]
[320544021,1711438238736,-155.47470332,0.00019998,2]
[320544023,1711438238746,-215.29429045,0.00019998,2]
[320544025,1711438238755,-310.07547367,0.00019998,2]
[320544027,1711438238764,-935.72346364,0.00019998,2]
[320544038,1711438238858,-155.67154003,0.00019998,2]
[320544040,1711438238870,-1147.0048762,0.00019998,2]
[320544042,1711438238879,-270.02364101,0.00019998,2]
[320544044,1711438238889,-155.37141757,0.00019998,2]
[320544046,1711438238898,-438.36524551,0.00019998,2]
[320544048,1711438238910,-562.65578317,0.00019998,2]
[320544050,1711438238919,-1093.8078394,0.00019998,2]
[320544052,1711438238929,-237.24959418,0.00019998,2]
[320544054,1711438238938,-205.33441189,0.00019998,2]
[320544056,1711438238951,-498.94477108,0.00019998,2]
[320544058,1711438238961,-473.6054651,0.00019998,2]
[320544061,1711438238970,-748.16540144,0.00019999,2]
[320544062,1711438238980,-468.68910607,0.00019999,2]
[320544064,1711438238990,-500.0,0.00019999,2]
[320544067,1711438239000,-186.71969654,0.00019999,2]
[320544068,1711438239009,-459.90315778,0.00019999,2]
[320544070,1711438239019,-500.0,0.00019999,2]
[320544072,1711438239030,-400.0,0.0002,2]
[320544075,1711438239041,-780.54671569,0.0002,2]
[320544077,1711438239050,-684.16921587,0.0002,2]
[320544079,1711438239060,-26533.52746544,0.0002,2]
[320544081,1711438239073,-2993.05060786,0.0002,2]
[320544404,1711438244252,-9266.55077526,0.0002,2]
[320544415,1711438244451,-56640.02026696,0.0002,2]
[320544416,1711438244488,-5531.72258586,0.0002,2]
[320544417,1711438244517,-13821.65805537,0.0002,2]
[320544427,1711438244591,-140587.69590499,0.0002,2]
[320544636,1711438246629,-421005.96819034,0.0002,2]
[320547036,1711439426126,80.48773313,0.00017841,2]
[320547037,1711439426151,219.51226687,0.00017841,2]
[320547124,1711439432554,-165.40406428,0.00019799,2]
[320547126,1711439432564,-163.8369253,0.00019893,2]
[320547128,1711439432573,-89.85925609,0.00019899,2]
[320547130,1711439432585,-410.14074391,0.00019899,2]
[320547132,1711439432595,-183.23912447,0.00019899,2]
[320547135,1711439432604,-500.0,0.00019899,2]
[320547138,1711439432612,-237.97088973,0.00019899,2]
[320547141,1711439432622,-649.15212018,0.00019899,2]
[320547144,1711439432630,-65597.80252825,0.000199,2]
[320547147,1711439432639,-5258.14767008,0.0001998,2]
[320547150,1711439432648,-263.53084447,0.00019993,7]
[320547152,1711439432657,-2605.93322734,0.00019998,2]
[320547155,1711439432666,-1574.04740099,0.00019998,2]
[320547158,1711439432675,-214.77448763,0.00019998,2]
[320547161,1711439432684,-210.40624973,0.00019998,2]
[320547164,1711439432694,-155.14739002,0.00019998,2]
[320547166,1711439432703,-155.14739002,0.00019998,2]
[320547169,1711439432713,-500.0,0.00019999,2]
[320547172,1711439432722,-265.05564025,0.00019999,2]
[320547175,1711439432732,-493.81487992,0.00019999,2]
[320547178,1711439432742,-500.0,0.00019999,2]
[320547180,1711439432751,-435.67929192,0.00019999,2]
[320547182,1711439432760,-16519.42244418,0.0002,2]
[320547477,1711439440607,-3180.9008885,0.0002,2]
[320547531,1711439443654,-1998.76580577,0.0002,2]
[320547538,1711439443714,-4828.22832813,0.0002,2]
[320547608,1711439446735,-7105.0,0.0002,2]
[320547609,1711439446747,-16199.14518726,0.0002,2]
[320548345,1711440077954,18802.5,0.00022222,30]
[320548409,1711440632674,-407.33322374,0.0001998,2]
[320548410,1711440632684,-200.86675974,0.00019989,2]
[320548411,1711440632694,-437.97094733,0.00019989,2]
[320548413,1711440632704,-4948.25162839,0.0001999,2]
[320548417,1711440632739,-4833.15620766,0.0001999,2]
[320548419,1711440632751,-2404.87775489,0.0001999,2]
[320548421,1711440632763,-9255.20889278,0.0001999,2]
[320548423,1711440632775,-1410.0000015,0.0001999,2]
[320548989,1711440638993,-1811.58916521,0.0001999,2]
[320549171,1711440640953,-9254.91029037,0.0001999,2]
[320549173,1711440640965,-3182.58600186,0.0001999,2]
[320549178,1711440641000,-487.14,0.0001999,2]
[320549180,1711440641012,-504.63526,0.0001999,2]
[320549182,1711440641023,-700.0,0.0001999,2]
[320549559,1711440644838,-345.0,0.0001999,2]
[320549568,1711440644971,-888.21218,0.0001999,2]
[320549570,1711440644982,-1962.4810933,0.0001999,2]
[320549572,1711440644994,-1911.0,0.0001999,2]
[320549574,1711440645006,-892.9999998,0.0001999,2]
[320550218,1711440864154,179.52,0.00026,120]
[320550264,1711441480325,-694.54123138,0.00025585,30]
[320550265,1711441480351,-1470780.97668097,0.00025585,60]
[320550266,1711441480374,-454855.03821388,0.00025585,60]
[320550267,1711441480400,-490604.6608307,0.00025585,60]
[320550268,1711441480423,-175.45163939,0.00025585,120]
[320550269,1711441480446,-5443.93728115,0.00025585,30]
[320550270,1711441480470,-577445.39412253,0.00025585,60]
[320550288,1711441661028,-2641794.88858653,0.00025585,60]
[320550289,1711441661054,-534.49854527,0.00025585,30]
[320550351,1711441831925,-6981.06727502,0.00019,2]
[320550352,1711441831935,-80.53272499,0.000199,2]
[320550354,1711441831946,-521.81321937,0.000199,2]
[320550356,1711441831956,-449.16143043,0.00019941,2]
[320550358,1711441831965,-1111.30952866,0.00019941,2]
[320550360,1711441831975,-113.94776844,0.00019942,2]
[320560753,1711441956831,1000.0,0.00025,80]
[320565743,1711442512812,277.057591,0.00018979,2]
[320565744,1711442543921,188.35001225,0.00018979,2]
[320565745,1711442555924,155.01395126,0.00018979,2]
[320565746,1711442573961,155.01395126,0.00018979,2]
[320565747,1711442596610,152.49716611,0.0002599,120]
[320565748,1711442596638,1147.66283389,0.0002599,120]
[320565749,1711442597930,155.01395126,0.00018979,2]
[320565750,1711442641154,155.01395126,0.00018979,2]
[320565751,1711442671138,237.98313966,0.00018979,2]
[320565901,1711443032834,-215.60671262,0.00019824,2]
[320565903,1711443032843,-1889.35512473,0.00019827,2]
[320565905,1711443032854,-3510.35507536,0.00019828,2]
[320565907,1711443032863,-215.60671262,0.00019842,2]
[320565909,1711443032872,-187.46769589,0.0001989,2]
[320565911,1711443032881,-10899.6961387,0.0001994,2]
[320565913,1711443032890,-217.55431238,0.00019942,2]
[320565915,1711443032899,-3057.12494025,0.00019946,2]
[320565917,1711443032909,-10899.6961387,0.0001995,2]
[320565919,1711443032918,-10899.6961387,0.00019957,2]
[320565922,1711443032928,-3057.12494025,0.00019958,2]
[320565924,1711443032937,-10899.6961387,0.00019962,2]
[320565926,1711443032946,-10899.6961387,0.00019965,2]
[320565928,1711443032955,-3057.12494025,0.00019969,2]
[320565930,1711443032964,-3057.12494025,0.0001997,2]
[320565932,1711443032974,-10899.6961387,0.00019971,2]
[320565934,1711443032983,-3057.12494025,0.00019973,2]
[320565936,1711443032992,-10899.6961387,0.00019974,2]
[320565938,1711443033001,-2921.72459997,0.00019978,2]
[320566240,1711443038254,-135.40034028,0.00019978,2]
[320566242,1711443038263,-429.99578037,0.00019978,2]
[320566248,1711443038316,-2627.12915988,0.00019978,2]
[320566250,1711443038325,-300.0,0.00019989,2]
[320566252,1711443038334,-3562.24,0.00019989,2]
[320566255,1711443038344,-500.0,0.00019989,2]
[320566257,1711443038353,-500.0,0.00019989,2]
[320566258,1711443038364,-1477.55944962,0.0001999,2]
[320566401,1711443040165,-53758.55376462,0.0001999,2]
[320566402,1711443040175,-204.77269619,0.00019998,2]
[320566404,1711443040184,-1052.45153794,0.00019998,2]
[320566406,1711443040194,-10967.37621663,0.00019998,2]
[320566408,1711443040204,-161.79801402,0.00019998,2]
[320566410,1711443040213,-1478.45909339,0.00019998,2]
[320566411,1711443040222,-187.70183457,0.00019998,2]
[320566413,1711443040232,-502.25,0.00019998,2]
[320566415,1711443040241,-500.0,0.00019998,2]
[320566417,1711443040250,-360.15762884,0.00019998,2]
[320566419,1711443040260,-1363.425901,0.00019998,2]
[320566422,1711443040277,-503.01188397,0.00019998,2]
[320566424,1711443040289,-1846.47221503,0.00019998,2]
[320566426,1711443040298,-500.0,0.00019998,2]
[320566428,1711443040307,-500.0,0.00019999,2]
[320566430,1711443040317,-500.0,0.00019999,2]
[320566432,1711443040326,-500.0,0.00019999,2]
[320566434,1711443040336,-500.0,0.00019999,2]
[320566436,1711443040345,-500.0,0.00019999,2]
[320566438,1711443040354,-500.0,0.00019999,2]
[320566440,1711443040364,-822.02,0.00019999,2]
[320566442,1711443040381,-500.0,0.00019999,2]
[320566444,1711443040390,-500.0,0.00019999,2]
[320566446,1711443040400,-500.0,0.00019999,2]
[320566448,1711443040409,-1146.66814459,0.00019999,2]
[320566532,1711443043384,-500.0,0.00019998,2]
[320566535,1711443043393,-298.7435086,0.00019999,2]
[320566537,1711443043406,-409.910339,0.00019999,2]
[320566539,1711443043418,-1061.41800781,0.00019999,2]
[320566541,1711443043427,-500.0,0.00019999,2]
[320566543,1711443043436,-123.42935982,0.00019999,2]
[320566796,1711443150980,500.0,0.00021917,30]
[320566804,1711443849993,2730.68471,0.000195,2]
[320566880,1711444232429,-170.63807538,0.00019898,2]
[320566882,1711444232439,-21497.13827045,0.00019899,2]
[320566884,1711444232449,-250.59805487,0.00019943,2]
[320566886,1711444232458,-250.59805487,0.00019946,2]
[320566888,1711444232469,-250.59805487,0.00019948,2]
[320566890,1711444232479,-250.59805487,0.00019953,2]
[320566892,1711444232489,-250.59805487,0.00019955,2]
[320566894,1711444232498,-3057.12494024,0.00019961,2]
[320566896,1711444232509,-3057.12494024,0.00019961,2]